[Event "*** Titled Tuesday Blitz"]
[Site "Chess.com"]
[Date "2020.04.14"]
[Round "1"]
[White "XDPS"]
[Black "benko_008"]
[Result "1-0"]
[WhiteElo "2741"]
[BlackElo "2381"]
[TimeControl "180+1"]
[EndTime "10:06:45 PDT"]
[Termination "XDPS won by resignation"]

1. d4 {[%clk 0:02:57.8]} 1... d5 {[%clk 0:02:58.5]} 2. Nf3 {[%clk 0:02:58]} 2...
Nf6 {[%clk 0:02:57.5]} 3. Bf4 {[%clk 0:02:58.4]} 3... e6 {[%clk 0:02:56.8]} 4.
e3 {[%clk 0:02:58.8]} 4... Bd6 {[%clk 0:02:56.1]} 5. Nbd2 {[%clk 0:02:59.2]}
5... O-O {[%clk 0:02:52.5]} 6. Bd3 {[%clk 0:02:57.3]} 6... c5 {[%clk 0:02:51.2]}
7. c3 {[%clk 0:02:57.1]} 7... b6 {[%clk 0:02:50.8]} 8. Bg3 {[%clk 0:02:51.1]}
8... Bb7 {[%clk 0:02:49.6]} 9. Ne5 {[%clk 0:02:48.2]} 9... Nc6 {[%clk 0:02:43]}
10. Qf3 {[%clk 0:02:43.7]} 10... Ne7 {[%clk 0:02:27.7]} 11. Bh4 {[%clk
0:02:39.5]} 11... Ng6 {[%clk 0:02:25.6]} 12. Nxg6 {[%clk 0:02:20.6]} 12... hxg6
{[%clk 0:02:23.1]} 13. O-O {[%clk 0:02:20.7]} 13... Be7 {[%clk 0:02:20.6]} 14.
Rfe1 {[%clk 0:02:16.8]} 14... Rc8 {[%clk 0:02:18.5]} 15. Rad1 {[%clk 0:02:15.5]}
15... Qc7 {[%clk 0:02:14.8]} 16. Bg3 {[%clk 0:02:13.8]} 16... Bd6 {[%clk
0:02:14.2]} 17. Bxd6 {[%clk 0:02:11.1]} 17... Qxd6 {[%clk 0:02:15.1]} 18. e4
{[%clk 0:02:08]} 18... dxe4 {[%clk 0:02:11.5]} 19. Nxe4 {[%clk 0:02:08.9]} 19...
Bxe4 {[%clk 0:02:07.6]} 20. Bxe4 {[%clk 0:02:09.8]} 20... Rfd8 {[%clk
0:01:58.7]} 21. Bc2 {[%clk 0:02:02.8]} 21... Qc7 {[%clk 0:01:49.8]} 22. dxc5
{[%clk 0:02:00.3]} 22... Qxc5 {[%clk 0:01:49.1]} 23. Bb3 {[%clk 0:02:00]} 23...
b5 {[%clk 0:01:44.6]} 24. g3 {[%clk 0:01:57.8]} 24... a5 {[%clk 0:01:42.9]} 25.
a3 {[%clk 0:01:54.6]} 25... b4 {[%clk 0:01:40.7]} 26. cxb4 {[%clk 0:01:54.2]}
26... axb4 {[%clk 0:01:41.6]} 27. a4 {[%clk 0:01:54.5]} 27... Rxd1 {[%clk
0:01:39.5]} 28. Rxd1 {[%clk 0:01:53.5]} 28... g5 {[%clk 0:01:36.5]} 29. Qd3
{[%clk 0:01:27.1]} 29... g6 {[%clk 0:01:31.5]} 30. Qd4 {[%clk 0:01:27.1]} 30...
Qxd4 {[%clk 0:01:19.5]} 31. Rxd4 {[%clk 0:01:26.6]} 31... Rc1+ {[%clk 0:01:16]}
32. Kg2 {[%clk 0:01:25.2]} 32... Rb1 {[%clk 0:01:16]} 33. Rxb4 {[%clk
0:01:21.2]} 33... Rxb2 {[%clk 0:01:13.1]} 34. a5 {[%clk 0:01:21.4]} 34... Nd5
{[%clk 0:01:10.6]} 35. Rb8+ {[%clk 0:01:19.7]} 35... Kg7 {[%clk 0:01:09.7]} 36.
a6 {[%clk 0:01:20.1]} 36... g4 {[%clk 0:01:08.6]} 37. Bxd5 {[%clk 0:01:11.6]}
37... Rxb8 {[%clk 0:01:04]} 38. a7 {[%clk 0:01:11.5]} 38... Rd8 {[%clk
0:01:03.5]} 39. a8=Q {[%clk 0:01:09.3]} 39... Rxd5 {[%clk 0:00:59.4]} 40. Qa1+
{[%clk 0:01:06.1]} 40... e5 {[%clk 0:00:55.5]} 41. Qc3 {[%clk 0:01:02]} 41...
Rd4 {[%clk 0:00:53]} 42. Qe3 {[%clk 0:01:01.8]} 42... Kf6 {[%clk 0:00:52]} 43.
Qh6 {[%clk 0:01:01.2]} 43... Re4 {[%clk 0:00:46.7]} 44. Qh8+ {[%clk 0:00:58.7]}
44... Ke7 {[%clk 0:00:44.2]} 45. Qc8 {[%clk 0:00:55.3]} 45... Kf6 {[%clk
0:00:41.1]} 46. Qc6+ {[%clk 0:00:55.4]} 46... Kf5 {[%clk 0:00:39.3]} 47. Qc2
{[%clk 0:00:54.6]} 47... f6 {[%clk 0:00:34.5]} 48. f3 {[%clk 0:00:54]} 48...
gxf3+ {[%clk 0:00:32.6]} 49. Kxf3 {[%clk 0:00:54.9]} 1-0

[Event "*** Titled Tuesday Blitz"]
[Site "Chess.com"]
[Date "2020.04.14"]
[Round "1"]
[White "Eltarolo"]
[Black "theblitzchamp"]
[Result "0-1"]
[WhiteElo "2333"]
[BlackElo "2680"]
[TimeControl "180+1"]
[EndTime "10:06:46 PDT"]
[Termination "theblitzchamp won by resignation"]

1. e4 {[%clk 0:02:58.5]} 1... e5 {[%clk 0:02:59.8]} 2. Nf3 {[%clk 0:02:58.3]}
2... Nc6 {[%clk 0:03:00.4]} 3. Bb5 {[%clk 0:02:58.4]} 3... a6 {[%clk 0:03:00.8]}
4. Ba4 {[%clk 0:02:58.5]} 4... Nge7 {[%clk 0:03:01.1]} 5. O-O {[%clk 0:02:56.4]}
5... g6 {[%clk 0:03:01.3]} 6. c3 {[%clk 0:02:55]} 6... Bg7 {[%clk 0:03:01]} 7.
d4 {[%clk 0:02:55.3]} 7... exd4 {[%clk 0:03:01.9]} 8. cxd4 {[%clk 0:02:55.2]}
8... b5 {[%clk 0:03:02.6]} 9. Bb3 {[%clk 0:02:52]} 9... d6 {[%clk 0:03:03.1]}
10. h3 {[%clk 0:02:51.8]} 10... O-O {[%clk 0:03:03]} 11. Nc3 {[%clk 0:02:51.9]}
11... Na5 {[%clk 0:03:03.5]} 12. Bc2 {[%clk 0:02:44.7]} 12... c5 {[%clk
0:03:03.8]} 13. Bg5 {[%clk 0:02:31.1]} 13... h6 {[%clk 0:02:58.1]} 14. Bh4
{[%clk 0:02:23.4]} 14... b4 {[%clk 0:02:32.2]} 15. Nd5 {[%clk 0:02:12.6]} 15...
g5 {[%clk 0:02:32.1]} 16. Bg3 {[%clk 0:01:27.5]} 16... Nxd5 {[%clk 0:02:25.9]}
17. exd5 {[%clk 0:01:28.4]} 17... c4 {[%clk 0:02:25.1]} 18. Qd2 {[%clk 0:01:15]}
18... Rb8 {[%clk 0:02:19.8]} 19. Rac1 {[%clk 0:01:11]} 19... Re8 {[%clk
0:02:09.7]} 20. Bb1 {[%clk 0:01:10.1]} 20... b3 {[%clk 0:02:04.9]} 21. a3 {[%clk
0:01:08.4]} 21... Rb5 {[%clk 0:01:52.6]} 22. Rfe1 {[%clk 0:00:52.2]} 22... Rxd5
{[%clk 0:01:45.8]} 23. Rxe8+ {[%clk 0:00:39.7]} 23... Qxe8 {[%clk 0:01:46]} 24.
Re1 {[%clk 0:00:39.9]} 24... Qd8 {[%clk 0:01:43]} 25. Qe3 {[%clk 0:00:31.9]}
25... Bf5 {[%clk 0:01:14]} 26. Qe8+ {[%clk 0:00:28.9]} 26... Qxe8 {[%clk
0:01:13.8]} 27. Rxe8+ {[%clk 0:00:29.4]} 27... Kh7 {[%clk 0:01:14.5]} 28. Bxf5+
{[%clk 0:00:18.3]} 28... Rxf5 {[%clk 0:01:15.4]} 29. Bxd6 {[%clk 0:00:18.9]}
29... Rd5 {[%clk 0:01:06.8]} 30. Bb4 {[%clk 0:00:18.3]} 30... Nc6 {[%clk
0:01:02.5]} 31. Rc8 {[%clk 0:00:07.2]} 31... Nxd4 {[%clk 0:01:02.5]} 32. Rxc4
{[%clk 0:00:05.1]} 32... Nxf3+ {[%clk 0:01:02.9]} 33. gxf3 {[%clk 0:00:05.5]}
33... Bxb2 {[%clk 0:01:03.5]} 34. Rc7 {[%clk 0:00:03.3]} 34... Kg6 {[%clk
0:01:01.2]} 35. Rc6+ {[%clk 0:00:01.3]} 35... f6 {[%clk 0:00:59.4]} 36. Rxa6
{[%clk 0:00:02.2]} 36... Rd1+ {[%clk 0:00:55.7]} 37. Kg2 {[%clk 0:00:02.3]}
37... Bd4 {[%clk 0:00:55.1]} 38. Be7 {[%clk 0:00:03.2]} 38... b2 {[%clk
0:00:54.9]} 39. Bxf6 {[%clk 0:00:03.5]} 39... Bxf6 {[%clk 0:00:54.8]} 40. Rc6
{[%clk 0:00:04.1]} 40... b1=Q {[%clk 0:00:55.2]} 0-1

[Event "*** Titled Tuesday Blitz"]
[Site "Chess.com"]
[Date "2020.04.14"]
[Round "1"]
[White "bascheyaro"]
[Black "kleopl"]
[Result "1-0"]
[WhiteElo "2753"]
[BlackElo "2393"]
[TimeControl "180+1"]
[EndTime "10:06:47 PDT"]
[Termination "bascheyaro won by checkmate"]

1. d4 {[%clk 0:02:51.2]} 1... Nf6 {[%clk 0:02:58.5]} 2. Nf3 {[%clk 0:02:51.2]}
2... g6 {[%clk 0:02:58.1]} 3. c4 {[%clk 0:02:50.6]} 3... Bg7 {[%clk 0:02:57.8]}
4. Bf4 {[%clk 0:02:49.9]} 4... O-O {[%clk 0:02:56.4]} 5. Nc3 {[%clk 0:02:49]}
5... d5 {[%clk 0:02:54.3]} 6. c5 {[%clk 0:02:49]} 6... c6 {[%clk 0:02:47.8]} 7.
e3 {[%clk 0:02:47.9]} 7... b5 {[%clk 0:02:35.9]} 8. cxb6 {[%clk 0:02:46.7]} 8...
axb6 {[%clk 0:02:35.4]} 9. Be2 {[%clk 0:02:45.6]} 9... Ba6 {[%clk 0:02:34.5]}
10. O-O {[%clk 0:02:44.1]} 10... Bxe2 {[%clk 0:02:33.1]} 11. Qxe2 {[%clk
0:02:44.7]} 11... Nbd7 {[%clk 0:02:21.8]} 12. h3 {[%clk 0:02:42.4]} 12... Qc8
{[%clk 0:02:17.5]} 13. Rfc1 {[%clk 0:02:40.5]} 13... Qb7 {[%clk 0:02:16.7]} 14.
a3 {[%clk 0:02:38.6]} 14... c5 {[%clk 0:02:01.5]} 15. Be5 {[%clk 0:02:37.5]}
15... Nxe5 {[%clk 0:01:54]} 16. Nxe5 {[%clk 0:02:36.4]} 16... e6 {[%clk
0:01:44]} 17. Qb5 {[%clk 0:02:22]} 17... Ra5 {[%clk 0:01:37.7]} 18. Qd3 {[%clk
0:02:12.1]} 18... Rfa8 {[%clk 0:01:29.2]} 19. Rab1 {[%clk 0:02:07.5]} 19... c4
{[%clk 0:01:26.8]} 20. Qc2 {[%clk 0:02:07.1]} 20... b5 {[%clk 0:01:21.4]} 21. f4
{[%clk 0:02:03.2]} 21... b4 {[%clk 0:01:17.3]} 22. axb4 {[%clk 0:02:03.2]} 22...
Qxb4 {[%clk 0:01:18.2]} 23. b3 {[%clk 0:02:01.9]} 23... cxb3 {[%clk 0:01:16.7]}
24. Rxb3 {[%clk 0:02:00.5]} 24... Qf8 {[%clk 0:01:14.6]} 25. Rcb1 {[%clk
0:02:00.1]} 25... Ra1 {[%clk 0:01:10.2]} 26. Rxa1 {[%clk 0:01:53.3]} 26... Rxa1+
{[%clk 0:01:11.1]} 27. Kh2 {[%clk 0:01:51.7]} 27... Nh5 {[%clk 0:00:56.4]} 28.
Qb2 {[%clk 0:01:46.6]} 28... Ra8 {[%clk 0:00:55.5]} 29. Nf3 {[%clk 0:01:41.9]}
29... Nf6 {[%clk 0:00:49.6]} 30. Rb7 {[%clk 0:01:38.2]} 30... h5 {[%clk
0:00:44.5]} 31. Ne5 {[%clk 0:01:35.4]} 31... Qa3 {[%clk 0:00:16.9]} 32. Rb8+
{[%clk 0:01:34.6]} 32... Bf8 {[%clk 0:00:15]} 33. Qb7 {[%clk 0:01:01.1]} 33...
Rxb8 {[%clk 0:00:12.7]} 34. Qxf7+ {[%clk 0:00:59.5]} 34... Kh8 {[%clk
0:00:11.9]} 35. Nxg6# {[%clk 0:01:00.1]} 1-0

[Event "*** Titled Tuesday Blitz"]
[Site "Chess.com"]
[Date "2020.04.14"]
[Round "1"]
[White "czasnaszachy"]
[Black "KobyKalavannan"]
[Result "0-1"]
[WhiteElo "2338"]
[BlackElo "2683"]
[TimeControl "180+1"]
[EndTime "10:06:49 PDT"]
[Termination "KobyKalavannan won by checkmate"]

1. d4 {[%clk 0:02:58.1]} 1... Nf6 {[%clk 0:02:59.9]} 2. c4 {[%clk 0:02:58]} 2...
g6 {[%clk 0:03:00.4]} 3. Nc3 {[%clk 0:02:56]} 3... Bg7 {[%clk 0:03:00.9]} 4. e4
{[%clk 0:02:56.6]} 4... d6 {[%clk 0:03:01.5]} 5. f4 {[%clk 0:02:56.9]} 5... O-O
{[%clk 0:03:01.5]} 6. Nf3 {[%clk 0:02:57.6]} 6... c5 {[%clk 0:03:02.1]} 7. d5
{[%clk 0:02:56.9]} 7... e6 {[%clk 0:03:02.7]} 8. dxe6 {[%clk 0:02:57.4]} 8...
Bxe6 {[%clk 0:03:02.4]} 9. Bd3 {[%clk 0:02:57.9]} 9... Nc6 {[%clk 0:02:56.7]}
10. f5 {[%clk 0:02:56.9]} 10... Bd7 {[%clk 0:02:54.9]} 11. O-O {[%clk
0:02:55.2]} 11... Ng4 {[%clk 0:02:54]} 12. Bg5 {[%clk 0:02:33.7]} 12... Bf6
{[%clk 0:02:24.5]} 13. Bxf6 {[%clk 0:02:30.1]} 13... Qxf6 {[%clk 0:02:24.6]} 14.
Nd5 {[%clk 0:02:22.6]} 14... Qd8 {[%clk 0:02:17.9]} 15. Qd2 {[%clk 0:02:11.7]}
15... f6 {[%clk 0:02:13.5]} 16. fxg6 {[%clk 0:01:55.6]} 16... hxg6 {[%clk
0:02:14.4]} 17. Nh4 {[%clk 0:01:53.3]} 17... g5 {[%clk 0:01:52.6]} 18. Nf5
{[%clk 0:01:39.9]} 18... Bxf5 {[%clk 0:01:50.1]} 19. Rxf5 {[%clk 0:01:35.2]}
19... Nd4 {[%clk 0:01:50]} 20. Rff1 {[%clk 0:01:30.4]} 20... Ne5 {[%clk
0:01:45]} 21. Qf2 {[%clk 0:01:06.3]} 21... Nxd3 {[%clk 0:01:30.5]} 22. Qg3
{[%clk 0:00:59.7]} 22... Ne5 {[%clk 0:01:29]} 23. Rf2 {[%clk 0:00:54.6]} 23...
Kg7 {[%clk 0:01:23.9]} 24. h4 {[%clk 0:00:53.8]} 24... Qd7 {[%clk 0:01:17.5]}
25. hxg5 {[%clk 0:00:49.7]} 25... Qg4 {[%clk 0:01:17.5]} 26. gxf6+ {[%clk
0:00:44.7]} 26... Kf7 {[%clk 0:01:08.4]} 27. Qe3 {[%clk 0:00:37.9]} 27... Rg8
{[%clk 0:01:02.7]} 28. Qh6 {[%clk 0:00:29.8]} 28... Rh8 {[%clk 0:00:52.6]} 29.
Qe3 {[%clk 0:00:22.5]} 29... Qh4 {[%clk 0:00:48.7]} 30. Rf4 {[%clk 0:00:20.3]}
30... Qh2+ {[%clk 0:00:41.8]} 31. Kf2 {[%clk 0:00:20.6]} 31... Rag8 {[%clk
0:00:39.3]} 32. Ke1 {[%clk 0:00:14.5]} 32... Rxg2 {[%clk 0:00:37.4]} 33. Rf1
{[%clk 0:00:12.4]} 33... Nc2+ {[%clk 0:00:36.9]} 34. Kd1 {[%clk 0:00:12.2]}
34... Nxe3+ {[%clk 0:00:37.1]} 35. Kc1 {[%clk 0:00:11.6]} 35... Rc2+ {[%clk
0:00:37.3]} 36. Kb1 {[%clk 0:00:11.5]} 36... Rxb2+ {[%clk 0:00:37.1]} 37. Kc1
{[%clk 0:00:12.1]} 37... Nd3# {[%clk 0:00:37.5]} 0-1

[Event "*** Titled Tuesday Blitz"]
[Site "Chess.com"]
[Date "2020.04.14"]
[Round "1"]
[White "FILI86"]
[Black "fabianvivasz"]
[Result "1-0"]
[WhiteElo "2607"]
[BlackElo "2243"]
[TimeControl "180+1"]
[EndTime "10:06:49 PDT"]
[Termination "FILI86 won by resignation"]

1. Nf3 {[%clk 0:03:00.7]} 1... c5 {[%clk 0:02:58.6]} 2. g3 {[%clk 0:03:00.5]}
2... Nf6 {[%clk 0:02:57.7]} 3. Bg2 {[%clk 0:03:01.4]} 3... g6 {[%clk 0:02:57.5]}
4. O-O {[%clk 0:03:02]} 4... Bg7 {[%clk 0:02:58.1]} 5. c4 {[%clk 0:03:01.7]}
5... O-O {[%clk 0:02:58.8]} 6. Nc3 {[%clk 0:03:02.4]} 6... d5 {[%clk 0:02:59.4]}
7. cxd5 {[%clk 0:03:02]} 7... Nxd5 {[%clk 0:03:00.3]} 8. d3 {[%clk 0:03:02.2]}
8... Nxc3 {[%clk 0:02:58.2]} 9. bxc3 {[%clk 0:03:03.1]} 9... Bxc3 {[%clk
0:02:59]} 10. Rb1 {[%clk 0:03:03.3]} 10... Nc6 {[%clk 0:02:57.8]} 11. Bh6 {[%clk
0:02:56.4]} 11... Bg7 {[%clk 0:02:52.1]} 12. Bxg7 {[%clk 0:02:55.6]} 12... Kxg7
{[%clk 0:02:53]} 13. Qc1 {[%clk 0:02:55.6]} 13... Qd6 {[%clk 0:02:50.3]} 14. Rd1
{[%clk 0:02:45.1]} 14... Rb8 {[%clk 0:02:31.5]} 15. Nd2 {[%clk 0:02:37]} 15...
Nd4 {[%clk 0:02:28]} 16. Qb2 {[%clk 0:02:36.3]} 16... Kg8 {[%clk 0:01:38.8]} 17.
Ne4 {[%clk 0:02:35.2]} 17... Qc7 {[%clk 0:01:36]} 18. Rdc1 {[%clk 0:02:31.2]}
18... Ne6 {[%clk 0:01:21.6]} 19. d4 {[%clk 0:02:21.6]} 19... c4 {[%clk
0:01:17.7]} 20. d5 {[%clk 0:02:06.2]} 20... Ng7 {[%clk 0:01:15.5]} 21. Nd2
{[%clk 0:02:02.3]} 21... b5 {[%clk 0:01:14.4]} 22. Nxc4 {[%clk 0:01:56]} 22...
Bf5 {[%clk 0:00:53.2]} 23. Ne5 {[%clk 0:01:52.8]} 23... Qd6 {[%clk 0:00:47.5]}
24. e4 {[%clk 0:01:52.7]} 24... Bd7 {[%clk 0:00:44.7]} 25. Nc6 {[%clk
0:01:38.7]} 25... Bxc6 {[%clk 0:00:43.8]} 26. Rxc6 {[%clk 0:01:39.6]} 26... Qd7
{[%clk 0:00:43.7]} 27. Rbc1 {[%clk 0:01:39]} 27... Ne8 {[%clk 0:00:29.9]} 28. e5
{[%clk 0:01:33]} 28... a5 {[%clk 0:00:24]} 29. h4 {[%clk 0:01:28.8]} 29... Qa7
{[%clk 0:00:21.9]} 30. h5 {[%clk 0:01:25.8]} 30... gxh5 {[%clk 0:00:22]} 31. Qd2
{[%clk 0:01:22.2]} 31... Ng7 {[%clk 0:00:21.1]} 32. Rc7 {[%clk 0:01:16.2]} 32...
Qb6 {[%clk 0:00:20.6]} 33. Rxe7 {[%clk 0:01:15.9]} 33... b4 {[%clk 0:00:20.7]}
34. e6 {[%clk 0:01:10]} 34... a4 {[%clk 0:00:19.4]} 35. exf7+ {[%clk 0:01:06]}
35... Rxf7 {[%clk 0:00:20.3]} 36. Rxf7 {[%clk 0:01:04.4]} 36... Kxf7 {[%clk
0:00:21.2]} 37. d6 {[%clk 0:01:04.3]} 37... b3 {[%clk 0:00:20.9]} 38. axb3
{[%clk 0:01:02.1]} 38... axb3 {[%clk 0:00:21.8]} 39. Rc7+ {[%clk 0:00:56.8]}
39... Kg8 {[%clk 0:00:20.9]} 40. Bd5+ {[%clk 0:00:47.3]} 40... Kh8 {[%clk
0:00:20.8]} 41. Qc3 {[%clk 0:00:47.2]} 41... Qxc7 {[%clk 0:00:13.1]} 42. dxc7
{[%clk 0:00:46.4]} 1-0

[Event "*** Titled Tuesday Blitz"]
[Site "Chess.com"]
[Date "2020.04.14"]
[Round "1"]
[White "ElHelvetico"]
[Black "zivicd"]
[Result "1-0"]
[WhiteElo "2604"]
[BlackElo "2239"]
[TimeControl "180+1"]
[EndTime "10:06:49 PDT"]
[Termination "ElHelvetico won by resignation"]

1. e4 {[%clk 0:03:00.9]} 1... c5 {[%clk 0:02:59.2]} 2. Nf3 {[%clk 0:03:00.6]}
2... e6 {[%clk 0:02:59.2]} 3. d4 {[%clk 0:03:00.5]} 3... cxd4 {[%clk 0:03:00.1]}
4. Nxd4 {[%clk 0:03:01.2]} 4... a6 {[%clk 0:03:00.1]} 5. Nc3 {[%clk 0:03:00.5]}
5... Qc7 {[%clk 0:02:59.4]} 6. Bd3 {[%clk 0:02:59.1]} 6... Nf6 {[%clk
0:02:58.8]} 7. f4 {[%clk 0:02:57.3]} 7... Bb4 {[%clk 0:02:52.2]} 8. Bd2 {[%clk
0:02:57.5]} 8... Nc6 {[%clk 0:02:45.7]} 9. Nxc6 {[%clk 0:02:54]} 9... bxc6
{[%clk 0:02:41.4]} 10. e5 {[%clk 0:02:54]} 10... Bxc3 {[%clk 0:02:38.5]} 11.
bxc3 {[%clk 0:02:40.6]} 11... Nd5 {[%clk 0:02:33]} 12. c4 {[%clk 0:02:40.3]}
12... Ne7 {[%clk 0:02:32.7]} 13. c5 {[%clk 0:02:28.7]} 13... a5 {[%clk
0:02:05.1]} 14. Qe2 {[%clk 0:02:17.4]} 14... O-O {[%clk 0:02:00.7]} 15. O-O
{[%clk 0:02:16.9]} 15... Qa7 {[%clk 0:01:48.8]} 16. Be3 {[%clk 0:02:16.3]} 16...
Ba6 {[%clk 0:01:48.1]} 17. c4 {[%clk 0:02:15.6]} 17... f6 {[%clk 0:01:38.4]} 18.
Rad1 {[%clk 0:01:33.4]} 18... fxe5 {[%clk 0:01:10.7]} 19. fxe5 {[%clk
0:01:34.3]} 19... Nf5 {[%clk 0:01:09]} 20. Bxf5 {[%clk 0:01:30.4]} 20... Rxf5
{[%clk 0:01:07.6]} 21. Rxf5 {[%clk 0:01:29.7]} 21... exf5 {[%clk 0:01:07.8]} 22.
h4 {[%clk 0:01:13]} 22... Re8 {[%clk 0:00:58.7]} 23. Bd4 {[%clk 0:01:06.3]}
23... Qb7 {[%clk 0:00:48.2]} 24. Qh5 {[%clk 0:00:53]} 24... g6 {[%clk
0:00:45.2]} 25. Qg5 {[%clk 0:00:48.2]} 25... Qb8 {[%clk 0:00:12.4]} 26. Bc3
{[%clk 0:00:38.7]} 26... Qd8 {[%clk 0:00:10]} 27. Qxd8 {[%clk 0:00:28.4]} 27...
Rxd8 {[%clk 0:00:09.9]} 28. e6 {[%clk 0:00:24.6]} 28... Bc8 {[%clk 0:00:08.9]}
29. Bxa5 {[%clk 0:00:21.8]} 1-0

[Event "*** Titled Tuesday Blitz"]
[Site "Chess.com"]
[Date "2020.04.14"]
[Round "1"]
[White "IngOscarArdila"]
[Black "DanielDardha2005"]
[Result "0-1"]
[WhiteElo "2124"]
[BlackElo "2551"]
[TimeControl "180+1"]
[EndTime "10:06:49 PDT"]
[Termination "DanielDardha2005 won by resignation"]

1. d4 {[%clk 0:03:00]} 1... Nf6 {[%clk 0:02:52.2]} 2. c4 {[%clk 0:02:59.6]} 2...
e6 {[%clk 0:02:52.1]} 3. Nc3 {[%clk 0:02:58.9]} 3... Bb4 {[%clk 0:02:52]} 4. Bd2
{[%clk 0:02:58.5]} 4... O-O {[%clk 0:02:51.2]} 5. Nf3 {[%clk 0:02:57.3]} 5... b6
{[%clk 0:02:49.8]} 6. e3 {[%clk 0:02:53]} 6... Bb7 {[%clk 0:02:49.1]} 7. Be2
{[%clk 0:02:53.1]} 7... d6 {[%clk 0:02:45.3]} 8. O-O {[%clk 0:02:52.3]} 8...
Nbd7 {[%clk 0:02:43.4]} 9. Rc1 {[%clk 0:02:50.6]} 9... Bxc3 {[%clk 0:02:37.9]}
10. Bxc3 {[%clk 0:02:50.4]} 10... Ne4 {[%clk 0:02:38.8]} 11. Qc2 {[%clk
0:02:49.4]} 11... f5 {[%clk 0:02:36.7]} 12. Bd3 {[%clk 0:02:44.5]} 12... Rf6
{[%clk 0:02:29]} 13. d5 {[%clk 0:02:40.8]} 13... Nxc3 {[%clk 0:02:29.1]} 14.
Qxc3 {[%clk 0:02:34.4]} 14... e5 {[%clk 0:02:28.8]} 15. Bb1 {[%clk 0:02:10.5]}
15... Qf8 {[%clk 0:02:21]} 16. b4 {[%clk 0:02:08.9]} 16... a5 {[%clk 0:02:20.3]}
17. a3 {[%clk 0:02:07.8]} 17... h6 {[%clk 0:02:14.3]} 18. Nh4 {[%clk 0:01:53.4]}
18... g5 {[%clk 0:02:13.2]} 19. Nf3 {[%clk 0:01:52.6]} 19... Qg7 {[%clk
0:02:07.2]} 20. Ne1 {[%clk 0:01:35.6]} 20... h5 {[%clk 0:02:02.1]} 21. Nd3
{[%clk 0:01:34.4]} 21... f4 {[%clk 0:01:49.4]} 22. exf4 {[%clk 0:01:32.5]} 22...
gxf4 {[%clk 0:01:49.2]} 23. f3 {[%clk 0:01:31.3]} 23... Kh8 {[%clk 0:01:41.6]}
24. Nf2 {[%clk 0:01:30.7]} 24... axb4 {[%clk 0:01:37.3]} 25. axb4 {[%clk
0:01:30.4]} 25... Rg8 {[%clk 0:01:37.6]} 26. Ng4 {[%clk 0:00:23.8]} 26... hxg4
{[%clk 0:01:34.1]} 27. fxg4 {[%clk 0:00:24.7]} 27... Qxg4 {[%clk 0:01:30.5]} 28.
Rf2 {[%clk 0:00:24.8]} 28... Rh6 {[%clk 0:01:20.6]} 29. Rcf1 {[%clk 0:00:20.6]}
29... Qh4 {[%clk 0:01:16.1]} 30. h3 {[%clk 0:00:19.4]} 30... Qxh3 {[%clk
0:01:14.6]} 31. Qxh3 {[%clk 0:00:18.8]} 31... Rxh3 {[%clk 0:01:15.5]} 32. Bf5
{[%clk 0:00:19.1]} 32... Rh7 {[%clk 0:01:13.4]} 33. Bxd7 {[%clk 0:00:19]} 33...
Rxd7 {[%clk 0:01:12.9]} 34. Rf3 {[%clk 0:00:19.1]} 34... Rdg7 {[%clk 0:01:11.7]}
35. Rh3+ {[%clk 0:00:18.9]} 35... Rh7 {[%clk 0:01:11.7]} 36. Rxh7+ {[%clk
0:00:18.3]} 36... Kxh7 {[%clk 0:01:12.6]} 37. Kf2 {[%clk 0:00:18.7]} 37... b5
{[%clk 0:01:12.3]} 38. cxb5 {[%clk 0:00:17.4]} 38... Bxd5 {[%clk 0:01:07.8]} 39.
Rc1 {[%clk 0:00:17.6]} 39... Rxg2+ {[%clk 0:01:07.3]} 40. Kf1 {[%clk 0:00:17.8]}
40... Rb2 {[%clk 0:01:06.5]} 41. Rxc7+ {[%clk 0:00:17.5]} 41... Kg6 {[%clk
0:01:00.6]} 42. Rd7 {[%clk 0:00:15.3]} 42... Bc4+ {[%clk 0:01:00.1]} 43. Ke1
{[%clk 0:00:15.2]} 43... f3 {[%clk 0:00:59.9]} 44. Rxd6+ {[%clk 0:00:15.3]}
44... Kf5 {[%clk 0:01:00.4]} 0-1

[Event "*** Titled Tuesday Blitz"]
[Site "Chess.com"]
[Date "2020.04.14"]
[Round "1"]
[White "ReyesBraulio"]
[Black "RitvarsReimanis"]
[Result "0-1"]
[WhiteElo "2183"]
[BlackElo "2571"]
[TimeControl "180+1"]
[EndTime "10:06:51 PDT"]
[Termination "RitvarsReimanis won on time"]

1. d4 {[%clk 0:02:47.5]} 1... Nf6 {[%clk 0:02:59]} 2. f4 {[%clk 0:02:47.2]} 2...
d6 {[%clk 0:02:39.5]} 3. c4 {[%clk 0:02:45.9]} 3... g6 {[%clk 0:02:38.4]} 4. Nc3
{[%clk 0:02:44.7]} 4... Bg7 {[%clk 0:02:17.3]} 5. e4 {[%clk 0:02:44.3]} 5... O-O
{[%clk 0:02:15.7]} 6. Nf3 {[%clk 0:02:43.9]} 6... Nbd7 {[%clk 0:02:11.8]} 7. Bd3
{[%clk 0:02:38.5]} 7... e5 {[%clk 0:02:05.5]} 8. fxe5 {[%clk 0:02:36.6]} 8...
dxe5 {[%clk 0:02:04.6]} 9. d5 {[%clk 0:02:37.1]} 9... Nh5 {[%clk 0:01:58.8]} 10.
O-O {[%clk 0:02:25.6]} 10... c6 {[%clk 0:01:54.1]} 11. Bg5 {[%clk 0:02:18.7]}
11... Qb6+ {[%clk 0:01:51.4]} 12. Rf2 {[%clk 0:02:17.7]} 12... Nf4 {[%clk
0:01:38.3]} 13. Be7 {[%clk 0:02:10.6]} 13... Re8 {[%clk 0:01:38.4]} 14. Ba3
{[%clk 0:01:42]} 14... Nc5 {[%clk 0:01:28]} 15. Bf1 {[%clk 0:01:28.9]} 15...
cxd5 {[%clk 0:01:27.2]} 16. cxd5 {[%clk 0:01:11.4]} 16... f5 {[%clk 0:01:03.2]}
17. Na4 {[%clk 0:01:03.7]} 17... Nxa4 {[%clk 0:00:52.8]} 18. Qxa4 {[%clk
0:01:03.3]} 18... Rd8 {[%clk 0:00:35]} 19. Rc1 {[%clk 0:00:50.6]} 19... Bd7
{[%clk 0:00:33.1]} 20. Qc2 {[%clk 0:00:30.7]} 20... Rac8 {[%clk 0:00:28.6]} 21.
Qb1 {[%clk 0:00:28.6]} 21... Rxc1 {[%clk 0:00:26.5]} 22. Qxc1 {[%clk 0:00:28.3]}
22... fxe4 {[%clk 0:00:26.9]} 23. Ng5 {[%clk 0:00:21.5]} 23... e3 {[%clk
0:00:24.6]} 24. Re2 {[%clk 0:00:19.7]} 24... Nxe2+ {[%clk 0:00:19.6]} 25. Bxe2
{[%clk 0:00:16.8]} 25... Qf6 {[%clk 0:00:20]} 26. Qc3 {[%clk 0:00:06.9]} 26...
Qxg5 {[%clk 0:00:17.2]} 0-1